fUST/lending_fUST_20250912
["ID","MTS","AMOUNT","RATE_DAILY","PERIOD"]
[385048538,1757652641783,-491.84307653,0.00014198,2]
[385048539,1757652641793,-486.2020097,0.00014198,2]
[385048540,1757652641805,-480.0,0.00014198,2]
[385048541,1757652641817,-265.94351585,0.00014198,2]
[385048542,1757652641828,-480.0,0.00014198,2]
[385048543,1757652641839,-480.0,0.00014198,2]
[385048544,1757652641849,-480.0,0.00014198,2]
[385048545,1757652641861,-480.0,0.00014198,2]
[385048546,1757652641872,-480.0,0.00014198,2]
[385048547,1757652641883,-485.22085515,0.00014198,2]
[385048548,1757652641894,-480.0,0.00014198,2]
[385048549,1757652641904,-244.8293057,0.00014198,2]
[385048550,1757652641916,-480.0,0.00014198,2]
[385048551,1757652641928,-480.0,0.00014198,2]
[385048552,1757652641939,-480.0,0.00014198,2]
[385048553,1757652641950,-480.0,0.00014198,2]
[385048554,1757652641961,-480.0,0.00014198,2]
[385048555,1757652641973,-480.0,0.00014198,2]
[385048556,1757652641983,-480.0,0.00014198,2]
[385048557,1757652641994,-480.0,0.00014198,2]
[385048558,1757652642004,-480.0,0.00014198,2]
[385048559,1757652642015,-480.0,0.00014198,2]
[385048560,1757652642026,-480.0,0.00014198,2]
[385048561,1757652642037,-480.0,0.00014198,2]
[385048562,1757652642048,-480.0,0.00014198,2]
[385048563,1757652642059,-480.0,0.00014198,2]
[385048564,1757652642069,-480.0,0.00014198,2]
[385048565,1757652642080,-480.0,0.00014198,2]
[385048566,1757652642091,-480.0,0.00014198,2]
[385048567,1757652642102,-480.0,0.00014198,2]
[385048568,1757652642113,-480.0,0.00014198,2]
[385048569,1757652642124,-480.0,0.00014198,2]
[385048570,1757652642135,-480.0,0.00014198,2]
[385048571,1757652642146,-480.0,0.00014198,2]
[385048572,1757652642157,-480.0,0.00014198,2]
[385048573,1757652642168,-480.0,0.00014198,2]
[385048574,1757652642179,-480.0,0.00014198,2]
[385048575,1757652642190,-480.0,0.00014198,2]
[385048576,1757652642201,-3185.53,0.00014198,2]
[385048577,1757652642212,-480.0,0.00014198,2]
[385048578,1757652642224,-480.0,0.00014198,2]
[385048579,1757652642234,-480.0,0.00014198,2]
[385048580,1757652642245,-492.11222958,0.00014198,2]
[385048581,1757652642256,-1548.88,0.00014198,2]
[385048582,1757652642267,-480.0,0.00014198,2]
[385048583,1757652642279,-490.20497562,0.00014198,2]
[385048584,1757652642290,-480.0,0.00014198,2]
[385048585,1757652642300,-480.0,0.00014198,2]
[385048586,1757652642310,-480.0,0.00014198,2]
[385048587,1757652642320,-480.0,0.00014198,2]
[385048588,1757652642472,-480.0,0.00014198,2]
[385048589,1757652642482,-480.0,0.00014198,2]
[385048590,1757652642493,-480.0,0.00014198,2]
[385048591,1757652642503,-837.24,0.00014198,2]
[385048592,1757652642513,-480.0,0.00014198,2]
[385048593,1757652642524,-480.0,0.00014198,2]
[385048594,1757652642533,-278.03946091,0.00014198,2]
[385048595,1757652642542,-480.0,0.00014198,2]
[385048596,1757652642552,-480.0,0.00014198,2]
[385048597,1757652642561,-480.0,0.00014198,2]
[385048598,1757652642571,-480.0,0.00014198,2]
[385048599,1757652642581,-480.0,0.00014198,2]
[385048600,1757652642591,-480.0,0.00014198,2]
[385048601,1757652642600,-480.0,0.00014198,2]
[385048602,1757652642610,-480.0,0.00014198,2]
[385048603,1757652642620,-300.0,0.00014202,2]
[385048604,1757652642629,-300.0,0.00014202,2]
[385048605,1757652642639,-300.0,0.00014202,2]
[385048606,1757652642649,-300.0,0.00014202,2]
[385048607,1757652642658,-300.0,0.00014202,2]
[385048608,1757652642668,-300.0,0.00014202,2]
[385048609,1757652642677,-300.0,0.00014202,2]
[385048610,1757652642687,-300.0,0.00014202,2]
[385048611,1757652642696,-300.0,0.00014202,2]
[385048612,1757652642706,-300.0,0.00014202,2]
[385048613,1757652642715,-300.0,0.00014202,2]
[385048614,1757652642725,-300.0,0.00014202,2]
[385048615,1757652642734,-300.0,0.00014202,2]
[385048616,1757652642744,-300.0,0.00014202,2]
[385048617,1757652642753,-300.0,0.00014202,2]
[385048618,1757652642762,-600.0,0.00014202,2]
[385048619,1757652642772,-480.0,0.00014297,2]
[385048620,1757652642781,-480.0,0.00014297,2]
[385048621,1757652642790,-157.0,0.00014298,2]
[385048622,1757652642799,-302.93562152,0.00014298,2]
[385048623,1757652642809,-500.0,0.00014298,2]
[385048624,1757652642818,-181.84,0.00014298,2]
[385048625,1757652642827,-480.0,0.00014298,2]
[385048626,1757652642837,-480.0,0.00014298,2]
[385048627,1757652642846,-491.20062485,0.00014298,2]
[385048628,1757652642855,-206.76830095,0.00014298,2]
[385048629,1757652642864,-480.0,0.00014298,2]
[385048630,1757652642873,-480.0,0.00014298,2]
[385048631,1757652642882,-480.0,0.00014298,2]
[385048632,1757652642891,-480.0,0.00014298,2]
[385048633,1757652642901,-480.0,0.00014298,2]
[385048634,1757652642910,-458.6330068,0.00014298,2]
[385048635,1757652642919,-480.0,0.00014298,2]
[385048637,1757652642929,-485.83696625,0.00014298,2]
[385048638,1757652642939,-480.0,0.00014298,2]
[385048640,1757652642948,-480.0,0.00014298,2]
[385048642,1757652642958,-480.0,0.00014298,2]
[385048643,1757652642967,-480.0,0.00014298,2]
[385048644,1757652642977,-248.63992709,0.00014298,2]
[385048646,1757652642986,-393.80868904,0.00014298,2]
[385048647,1757652642995,-480.0,0.00014298,2]
[385048648,1757652643004,-480.0,0.00014298,2]
[385048649,1757652643013,-480.0,0.00014298,2]
[385048650,1757652643023,-480.0,0.00014298,2]
[385048651,1757652643032,-480.0,0.00014298,2]
[385048652,1757652643042,-483.38976661,0.00014298,2]
[385048653,1757652643051,-480.0,0.00014298,2]
[385048654,1757652643060,-480.0,0.00014298,2]
[385048655,1757652643069,-480.0,0.00014298,2]
[385048656,1757652643079,-480.0,0.00014298,2]
[385048658,1757652643088,-480.0,0.00014298,2]
[385048659,1757652643097,-480.0,0.00014298,2]
[385048660,1757652643106,-480.0,0.00014298,2]
[385048661,1757652643116,-480.0,0.00014298,2]
[385048662,1757652643125,-480.0,0.00014298,2]
[385048663,1757652643134,-480.0,0.00014298,2]
[385048664,1757652643143,-480.0,0.00014298,2]
[385048665,1757652643153,-480.0,0.00014298,2]
[385048666,1757652643163,-480.0,0.00014298,2]
[385048667,1757652643172,-363.54005415,0.00014298,2]
[385048668,1757652643181,-484.37650238,0.00014298,2]
[385048669,1757652643191,-352.12125989,0.00014298,2]
[385048670,1757652643199,-480.0,0.00014298,2]
[385048671,1757652643208,-480.0,0.00014298,2]
[385048672,1757652643218,-555.22001808,0.00014298,2]
[385048673,1757652643227,-480.0,0.00014298,2]
[385048674,1757652643237,-480.0,0.00014298,2]
[385048675,1757652643246,-480.0,0.00014298,2]
[385048676,1757652643256,-480.0,0.00014298,2]
[385048677,1757652643266,-382.36415016,0.00014298,2]
[385048678,1757652643275,-480.0,0.00014298,2]
[385048679,1757652643285,-480.0,0.00014298,2]
[385048680,1757652643295,-480.0,0.00014298,2]
[385048681,1757652643304,-480.0,0.00014298,2]
[385048682,1757652643313,-563.40481031,0.00014298,2]
[385048683,1757652643322,-480.0,0.00014298,2]
[385048684,1757652643332,-480.0,0.00014298,2]
[385048685,1757652643341,-480.0,0.00014298,2]
[385048686,1757652643350,-480.0,0.00014298,2]
[385048687,1757652643360,-480.0,0.00014298,2]
[385048688,1757652643369,-480.0,0.00014298,2]
[385048689,1757652643379,-480.0,0.00014298,2]
[385048690,1757652643388,-480.0,0.00014298,2]
[385048691,1757652643397,-480.0,0.00014298,2]
[385048692,1757652643409,-480.0,0.00014298,2]
[385048693,1757652643420,-480.0,0.00014298,2]
[385048694,1757652643429,-480.0,0.00014298,2]
[385048695,1757652643438,-480.0,0.00014298,2]
[385048696,1757652643447,-480.0,0.00014298,2]
[385048697,1757652643456,-183.78282936,0.00014298,2]
[385048698,1757652643466,-485.12510185,0.00014298,2]
[385048699,1757652643475,-480.0,0.00014298,2]
[385048700,1757652643485,-480.0,0.00014298,2]
[385048701,1757652643494,-532.84539001,0.00014298,2]
[385048702,1757652643504,-480.0,0.00014298,2]
[385048703,1757652643513,-579.46915122,0.00014298,2]
[385048704,1757652643523,-260.65048507,0.00014299,2]
[385048705,1757652643532,-480.0,0.00014299,2]
[385048706,1757652643541,-480.0,0.00014299,2]
[385048707,1757652643550,-465.62313008,0.00014299,2]
[385048708,1757652643558,-480.0,0.00014299,2]
[385048709,1757652643568,-480.0,0.000143,2]
[385048710,1757652643577,-255.52095575,0.000143,2]
[385048711,1757652643587,-584.17745097,0.000143,2]
[385048712,1757652643596,-1000.0,0.00014301,2]
[385048713,1757652643605,-229.80982725,0.00014303,2]
[385048714,1757652643616,-480.0,0.00014471,2]
[385048715,1757652643625,-480.0,0.00014471,2]
[385048716,1757652643634,-480.0,0.00014471,2]
[385048717,1757652643643,-480.0,0.00014471,2]
[385048718,1757652643653,-666.25,0.00014471,2]
[385048719,1757652643662,-480.0,0.00014472,2]
[385048720,1757652643671,-480.0,0.00014472,2]
[385048721,1757652643680,-480.0,0.00014472,2]
[385048722,1757652643689,-480.0,0.00014472,2]
[385048723,1757652643699,-480.0,0.00014472,2]
[385048724,1757652643708,-480.0,0.00014472,2]
[385048725,1757652643718,-488.19160927,0.00014472,2]
[385048726,1757652643727,-604.7697605,0.00014472,2]
[385048727,1757652643737,-480.0,0.00014472,2]
[385048728,1757652643746,-546.95695443,0.00014472,2]
[385048729,1757652643756,-480.0,0.00014472,2]
[385048730,1757652643765,-480.0,0.00014472,2]
[385048731,1757652643775,-502.3723421,0.00014472,2]
[385048732,1757652643784,-480.0,0.00014472,2]
[385048733,1757652643794,-480.0,0.00014472,2]
[385048734,1757652643803,-480.0,0.00014472,2]
[385048735,1757652643812,-490.24044286,0.00014472,2]
[385048736,1757652643822,-480.0,0.00014472,2]
[385048737,1757652643831,-480.0,0.00014472,2]
[385048738,1757652643844,-480.0,0.00014472,2]
[385048739,1757652643853,-480.0,0.00014472,2]
[385048740,1757652643863,-480.0,0.00014472,2]
[385048741,1757652643872,-480.0,0.00014472,2]
[385048742,1757652643881,-480.0,0.00014472,2]
[385048743,1757652643891,-480.0,0.00014472,2]
[385048744,1757652643900,-480.0,0.00014472,2]
[385048745,1757652643911,-480.0,0.00014472,2]
[385048746,1757652643920,-480.0,0.00014472,2]
[385048747,1757652643930,-488.7307436,0.00014472,2]
[385048748,1757652643939,-480.0,0.00014472,2]
[385048749,1757652643949,-480.0,0.00014472,2]
[385048750,1757652643958,-480.0,0.00014472,2]
[385048751,1757652643967,-480.0,0.00014472,2]
[385048752,1757652643976,-480.0,0.00014472,2]
[385048753,1757652643986,-521.61568342,0.00014472,2]
[385048754,1757652643995,-480.0,0.00014472,2]
[385048755,1757652644004,-3185.53,0.00014472,2]
[385048756,1757652644014,-480.0,0.00014472,2]
[385048757,1757652644023,-480.0,0.00014472,2]
[385048758,1757652644032,-480.0,0.00014472,2]
[385048759,1757652644042,-1548.88,0.00014472,2]
[385048760,1757652644051,-480.0,0.00014472,2]
[385048761,1757652644060,-489.33266888,0.00014472,2]
[385048762,1757652644069,-480.0,0.00014472,2]
[385048763,1757652644078,-489.34940837,0.00014472,2]
[385048764,1757652644087,-480.0,0.00014472,2]
[385048765,1757652644097,-480.0,0.00014472,2]
[385048766,1757652644106,-480.0,0.00014472,2]
[385048767,1757652644115,-480.0,0.00014472,2]
[385048768,1757652644125,-837.24,0.00014472,2]
[385048769,1757652644134,-480.0,0.00014472,2]
[385048770,1757652644143,-480.0,0.00014472,2]
[385048771,1757652644153,-480.0,0.00014472,2]
[385048772,1757652644162,-480.0,0.00014472,2]
[385048773,1757652644171,-480.0,0.00014472,2]
[385048774,1757652644180,-480.0,0.00014472,2]
[385048775,1757652644190,-480.0,0.00014472,2]
[385048776,1757652644199,-480.0,0.00014472,2]
[385048777,1757652644208,-480.0,0.00014472,2]
[385048778,1757652644218,-1225.6367912,0.0001451,2]
[385048779,1757652644228,-1000.0,0.00014521,2]
[385048780,1757652644238,-1000.0,0.00014521,2]
[385048781,1757652644248,-500.82849927,0.00014522,2]
[385048782,1757652644258,-500.0,0.00014522,2]
[385048783,1757652644267,-297.34,0.00014571,2]
[385048784,1757652644276,-193.62582011,0.00014572,2]
[385048785,1757652644286,-512.10199778,0.00014572,2]
[385048786,1757652644296,-480.0,0.00014572,2]
[385048787,1757652644305,-480.0,0.00014572,2]
[385048788,1757652644314,-480.0,0.00014572,2]
[385048789,1757652644324,-480.0,0.00014572,2]
[385048790,1757652644334,-480.0,0.00014572,2]
[385048791,1757652644344,-488.51382705,0.00014572,2]
[385048792,1757652644353,-480.0,0.00014572,2]
[385048793,1757652644364,-480.0,0.00014572,2]
[385048794,1757652644374,-480.0,0.00014572,2]
[385048795,1757652644383,-480.0,0.00014572,2]
[385048796,1757652644393,-480.0,0.00014572,2]
[385048797,1757652644403,-480.0,0.00014572,2]
[385048798,1757652644415,-487.5501177,0.00014572,2]
[385048799,1757652644424,-480.0,0.00014572,2]
[385048800,1757652644433,-575.48886381,0.00014572,2]
[385048801,1757652644443,-583.19102658,0.00014572,2]
[385048802,1757652644453,-480.0,0.00014572,2]
[385048803,1757652644462,-151.0,0.00014572,2]
[385048804,1757652644471,-480.0,0.00014572,2]
[385048805,1757652644482,-504.88850377,0.00014572,2]
[385048806,1757652644492,-151.0,0.00014572,2]
[385048807,1757652644502,-151.0,0.00014572,2]
[385048808,1757652644513,-151.0,0.00014572,2]
[385048809,1757652644522,-152.755332,0.00014572,2]
[385048810,1757652644532,-153.381209,0.00014572,2]
[385048811,1757652644541,-360.80570104,0.00014572,2]
[385048812,1757652644551,-480.0,0.00014572,2]
[385048813,1757652644561,-480.0,0.00014572,2]
[385048814,1757652644571,-480.0,0.00014572,2]
[385048816,1757652644580,-480.0,0.00014572,2]
[385048817,1757652644590,-151.0,0.00014572,2]
[385048818,1757652644599,-151.0,0.00014572,2]
[385048819,1757652644609,-151.0,0.00014572,2]
[385048820,1757652644619,-151.0,0.00014572,2]
[385048821,1757652644628,-487.45,0.00014572,2]
[385048822,1757652644638,-151.0,0.00014572,2]
[385048823,1757652644647,-480.0,0.00014572,2]
[385048824,1757652644657,-151.0,0.00014572,2]
[385048825,1757652644667,-487.68736116,0.00014572,2]
[385048826,1757652644678,-480.0,0.00014572,2]
[385048827,1757652644687,-480.0,0.00014572,2]
[385048828,1757652644697,-484.53466525,0.00014572,2]
[385048829,1757652644707,-151.0,0.00014572,2]
[385048830,1757652644718,-480.0,0.00014572,2]
[385048831,1757652644729,-484.96259875,0.00014572,2]
[385048832,1757652644738,-480.0,0.00014572,2]
[385048833,1757652644748,-480.0,0.00014572,2]
[385048834,1757652644758,-480.0,0.00014572,2]
[385048835,1757652644768,-480.0,0.00014572,2]
[385048836,1757652644777,-480.0,0.00014572,2]
[385048837,1757652644787,-480.0,0.00014572,2]
[385048838,1757652644797,-480.0,0.00014572,2]
[385048839,1757652644808,-480.0,0.00014572,2]
[385048840,1757652644817,-484.11163318,0.00014572,2]
[385048841,1757652644826,-480.0,0.00014572,2]
[385048842,1757652644836,-151.0,0.00014573,2]
[385048843,1757652644846,-278.316676,0.00014573,2]
[385048844,1757652644856,-488.4053597,0.00014573,2]
[385048845,1757652644866,-480.51763598,0.00014573,2]
[385048846,1757652644875,-480.0,0.00014573,2]
[385048847,1757652644886,-218.95368052,0.00014574,2]
[385048848,1757652644896,-1007.72438835,0.00014621,2]
[385048849,1757652644905,-501.02421732,0.00014621,2]
[385048850,1757652644916,-1096.8589859,0.00014621,2]
[385048851,1757652644926,-1003.44170445,0.00014621,2]
[385048852,1757652644936,-151.0,0.00014673,2]
[385048853,1757652644945,-451.70870336,0.00014745,2]
[385048854,1757652644955,-480.0,0.00014745,2]
[385048855,1757652644964,-480.0,0.00014745,2]
[385048856,1757652644974,-480.0,0.00014745,2]
[385048857,1757652644983,-666.25,0.00014745,2]
[385048858,1757652644993,-154.511059,0.00014746,2]
[385048859,1757652645002,-151.588811,0.00014746,2]
[385048860,1757652645012,-380.0,0.00014746,2]
[385048861,1757652645021,-380.0,0.00014746,2]
[385048862,1757652645031,-380.0,0.00014746,2]
[385048863,1757652645040,-380.0,0.00014746,2]
[385048864,1757652645050,-480.0,0.00014746,2]
[385048865,1757652645059,-480.0,0.00014746,2]
[385048866,1757652645068,-363.70947972,0.00014746,2]
[385048867,1757652645078,-480.0,0.00014746,2]
[385048868,1757652645088,-480.0,0.00014746,2]
[385048869,1757652645097,-493.22164593,0.00014746,2]
[385048870,1757652645106,-487.09206768,0.00014746,2]
[385048871,1757652645116,-151.0,0.00014746,2]
[385048872,1757652645125,-480.0,0.00014746,2]
[385048873,1757652645134,-480.0,0.00014746,2]
[385048874,1757652645144,-154.26924,0.00014746,2]
[385048875,1757652645153,-480.0,0.00014746,2]
[385048876,1757652645261,-480.0,0.00014746,2]
[385048877,1757652645271,-480.0,0.00014746,2]
[385048878,1757652645281,-480.0,0.00014746,2]
[385048879,1757652645291,-480.0,0.00014746,2]
[385048880,1757652645301,-480.0,0.00014746,2]
[385048881,1757652645310,-151.0,0.00014746,2]
[385048882,1757652645320,-151.0,0.00014746,2]
[385048883,1757652645330,-151.0,0.00014746,2]
[385048884,1757652645340,-151.0,0.00014746,2]
[385048885,1757652645349,-480.0,0.00014746,2]
[385048886,1757652645359,-480.0,0.00014746,2]
[385048887,1757652645368,-480.0,0.00014746,2]
[385048888,1757652645379,-480.0,0.00014746,2]
[385048889,1757652645389,-480.0,0.00014746,2]
[385048890,1757652645398,-480.0,0.00014746,2]
[385048891,1757652645409,-480.0,0.00014746,2]
[385048892,1757652645423,-151.0,0.00014746,2]
[385048893,1757652645433,-151.0,0.00014746,2]
[385048894,1757652645443,-151.0,0.00014746,2]
[385048895,1757652645452,-151.0,0.00014746,2]
[385048896,1757652645463,-480.0,0.00014746,2]
[385048897,1757652645472,-480.0,0.00014746,2]
[385048898,1757652645482,-480.0,0.00014746,2]
[385048899,1757652645492,-480.0,0.00014746,2]
[385048900,1757652645501,-488.34459144,0.00014746,2]
[385048901,1757652645511,-480.0,0.00014746,2]
[385048902,1757652645520,-151.0,0.00014746,2]
[385048903,1757652645529,-151.0,0.00014746,2]
[385048904,1757652645539,-151.0,0.00014746,2]
[385048905,1757652645548,-151.0,0.00014746,2]
[385048906,1757652645557,-3185.53,0.00014746,2]
[385048907,1757652645567,-480.0,0.00014746,2]
[385048908,1757652645576,-151.0,0.00014746,2]
[385048909,1757652645586,-151.945491,0.00014746,2]
[385048910,1757652645595,-151.0,0.00014746,2]
[385048911,1757652645606,-153.532687,0.00014746,2]
[385048912,1757652645616,-480.0,0.00014746,2]
[385048913,1757652645626,-480.0,0.00014746,2]
[385048914,1757652645636,-176.707419,0.00014746,2]
[385048915,1757652645645,-151.0,0.00014746,2]
[385048916,1757652645655,-176.707419,0.00014746,2]
[385048917,1757652645665,-176.707419,0.00014746,2]
[385048918,1757652645674,-151.0,0.00014746,2]
[385048919,1757652645684,-176.707419,0.00014746,2]
[385048920,1757652645693,-1548.88,0.00014746,2]
[385048921,1757652645703,-480.0,0.00014746,2]
[385048922,1757652645712,-151.0,0.00014746,2]
[385048923,1757652645721,-480.0,0.00014746,2]
[385048924,1757652645734,-321.72049592,0.00014746,2]
[385048925,1757652645744,-239.79,0.00014746,2]
[385048926,1757652645753,-480.0,0.00014746,2]
[385048927,1757652645763,-480.0,0.00014746,2]
[385048928,1757652645772,-837.24,0.00014746,2]
[385048929,1757652645781,-330.92594043,0.00014746,2]
[385048930,1757652645790,-490.30875463,0.00014746,2]
[385048931,1757652645799,-480.0,0.00014746,2]
[385048932,1757652645808,-480.0,0.00014746,2]
[385048933,1757652645818,-480.0,0.00014746,2]
[385048934,1757652645827,-480.0,0.00014746,2]
[385048935,1757652645836,-480.0,0.00014746,2]
[385048936,1757652645845,-480.0,0.00014746,2]
[385048937,1757652645855,-10585.41552735,0.00014825,2]
[385048938,1757652645864,-270.188107,0.00014825,2]
[385048939,1757652645873,-151.0,0.00014825,2]
[385048941,1757652645882,-151.0,0.00014825,2]
[385048942,1757652645892,-151.0,0.00014825,2]
[385048943,1757652645901,-500.72771575,0.00014826,2]
[385048944,1757652645911,-500.41814036,0.00014826,2]
[385048945,1757652645920,-151.0,0.00014846,2]
[385048946,1757652645929,-480.0,0.00014846,2]
[385048947,1757652645938,-480.0,0.00014846,2]
[385048948,1757652645947,-480.0,0.00014846,2]
[385048949,1757652645956,-480.0,0.00014846,2]
[385048950,1757652645965,-489.85049425,0.00014846,2]
[385048951,1757652645975,-480.0,0.00014846,2]
[385048952,1757652645984,-480.0,0.00014846,2]
[385048953,1757652645993,-480.0,0.00014846,2]
[385048954,1757652646002,-480.0,0.00014846,2]
[385048956,1757652646011,-480.0,0.00014846,2]
[385048957,1757652646021,-480.0,0.00014846,2]
[385048959,1757652646030,-480.0,0.00014846,2]
[385048960,1757652646039,-480.0,0.00014846,2]
[385048961,1757652646047,-234.14747166,0.00014846,2]
[385048962,1757652646056,-480.0,0.00014846,2]
[385048963,1757652646065,-480.0,0.00014846,2]
[385048964,1757652646074,-480.0,0.00014846,2]
[385048965,1757652646083,-480.0,0.00014846,2]
[385048966,1757652646092,-485.50836363,0.00014846,2]
[385048967,1757652646100,-480.0,0.00014846,2]
[385048968,1757652646109,-480.0,0.00014846,2]
[385048969,1757652646118,-480.0,0.00014846,2]
[385048970,1757652646127,-151.0,0.00014846,2]
[385048971,1757652646136,-480.0,0.00014847,2]
[385048972,1757652646146,-1225.6367912,0.00014852,2]
[385048973,1757652646155,-500.0,0.00014892,2]
[385048974,1757652646164,-500.68417353,0.00014892,2]
[385048975,1757652646174,-502.6960184,0.00014947,2]
[385048976,1757652646183,-500.0,0.00014971,2]
[385048977,1757652646192,-160.08160613,0.00015001,2]
[385048978,1757652646201,-500.0,0.00015001,2]
[385048979,1757652646210,-501.29234701,0.00015001,2]
[385048980,1757652646219,-500.0,0.00015001,2]
[385048981,1757652646228,-500.29272305,0.00015001,2]
[385048982,1757652646237,-213.11346901,0.00015001,2]
[385048983,1757652646246,-480.0,0.00015019,2]
[385048984,1757652646256,-480.0,0.00015019,2]
[385048985,1757652646265,-169.49911525,0.00015019,2]
[385048986,1757652646273,-666.25,0.00015019,2]
[385048987,1757652646283,-480.0,0.0001502,2]
[385048988,1757652646292,-480.0,0.0001502,2]
[385048989,1757652646301,-351.40458839,0.0001502,2]
[385048990,1757652646310,-480.0,0.0001502,2]
[385048991,1757652646319,-480.0,0.0001502,2]
[385048992,1757652646328,-255.67804818,0.0001502,2]
[385048993,1757652646337,-480.0,0.0001502,2]
[385048994,1757652646346,-480.0,0.0001502,2]
[385048995,1757652646355,-480.0,0.0001502,2]
[385048996,1757652646364,-480.0,0.0001502,2]
[385048997,1757652646373,-333.98788163,0.0001502,2]
[385048998,1757652646382,-480.0,0.0001502,2]
[385048999,1757652646391,-480.0,0.0001502,2]
[385049000,1757652646400,-480.0,0.0001502,2]
[385049001,1757652646410,-480.0,0.0001502,2]
[385049002,1757652646419,-480.0,0.0001502,2]
[385049003,1757652646428,-480.0,0.0001502,2]
[385049004,1757652646437,-480.0,0.0001502,2]
[385049005,1757652646446,-480.0,0.0001502,2]
[385049006,1757652646455,-480.0,0.0001502,2]
[385049007,1757652646464,-480.0,0.0001502,2]
[385049008,1757652646473,-480.0,0.0001502,2]
[385049009,1757652646482,-480.0,0.0001502,2]
[385049010,1757652646491,-3185.53,0.0001502,2]
[385049011,1757652646501,-480.0,0.0001502,2]
[385049012,1757652646510,-480.0,0.0001502,2]
[385049013,1757652646519,-480.0,0.0001502,2]
[385049014,1757652646528,-1548.88,0.0001502,2]
[385049015,1757652646537,-480.0,0.0001502,2]
[385049016,1757652646546,-480.0,0.0001502,2]
[385049017,1757652646555,-480.0,0.0001502,2]
[385049018,1757652646564,-480.0,0.0001502,2]
[385049019,1757652646573,-837.24,0.0001502,2]
[385049020,1757652646583,-480.0,0.0001502,2]
[385049021,1757652646592,-480.0,0.0001502,2]
[385049022,1757652646601,-480.0,0.0001502,2]
[385049023,1757652646610,-480.0,0.0001502,2]
[385049024,1757652646619,-480.0,0.0001502,2]
[385049025,1757652646629,-480.0,0.0001502,2]
[385049026,1757652646638,-500.0,0.00015034,2]
[385049027,1757652646647,-501.22653571,0.00015034,2]
[385049028,1757652646656,-500.54989184,0.00015034,2]
[385049029,1757652646665,-500.53033312,0.00015034,2]
[385049030,1757652646674,-500.56764468,0.00015034,2]
[385049031,1757652646684,-1500.0,0.00015068,2]
[385049032,1757652646693,-1500.0,0.00015068,2]
[385049033,1757652646702,-180.569644,0.00015068,2]
[385049034,1757652646712,-505.11654427,0.00015068,2]
[385049035,1757652646721,-519.24311429,0.0001507,2]
[385049036,1757652646731,-151.0,0.0001512,2]
[385049037,1757652646741,-151.0,0.0001512,2]
[385049038,1757652646750,-480.0,0.0001512,2]
[385049039,1757652646759,-480.0,0.0001512,2]
[385049040,1757652646768,-480.0,0.0001512,2]
[385049041,1757652646778,-480.0,0.0001512,2]
[385049043,1757652646787,-480.0,0.0001512,2]
[385049045,1757652646796,-480.0,0.0001512,2]
[385049047,1757652646805,-480.0,0.0001512,2]
[385049049,1757652646814,-480.0,0.0001512,2]
[385049050,1757652646824,-191.68918648,0.0001512,2]